bitfinex-derivatives/quotes_BTCF0:USTF0_20241203
["timestamp","ask_amount","ask_price","bid_price","bid_amount"]
[1733234352538,0.053362,93722.0,93720.0,7.708e-05]
[1733234353042,0.3608,93724.0,93720.0,7.708e-05]
[1733234353429,0.21112648,93722.0,93720.0,7.708e-05]
[1733234353639,0.21112648,93722.0,93720.0,0.05344008]
[1733234354136,0.3608,93724.0,93723.0,0.053362]
[1733234354338,0.3608,93724.0,93720.0,7.708e-05]
[1733234354729,0.3608,93724.0,93721.0,0.053363]
[1733234354931,0.3608,93724.0,93722.0,0.053362]
[1733234356939,0.21308,93740.0,93734.0,0.053355]
[1733234357335,0.3608,93742.0,93734.0,0.053355]
[1733234357533,0.3608,93735.0,93734.0,0.053355]
[1733234357735,0.3608,93742.0,93734.0,0.053355]
[1733234357950,0.36240092,93746.0,93734.0,0.053355]
[1733234358131,0.3608,93738.0,93728.0,0.053358]
[1733234358438,0.3608,93738.0,93731.0,0.053357]
[1733234358737,0.3608,93732.0,93722.0,0.25451365]
[1733234358939,0.3608,93732.0,93720.0,7.708e-05]
[1733234358940,0.3608,93723.0,93721.0,0.25451365]
[1733234359238,0.3608,93723.0,93712.0,0.31811448]
[1733234359434,0.3608,93713.0,93707.0,0.05337]
[1733234359631,0.13658983,93713.0,93707.0,0.05337]
[1733234359831,0.13658983,93713.0,93701.0,0.31811448]
[1733234360039,0.13658983,93713.0,93702.0,0.0133474]
[1733234360241,0.13658983,93713.0,93707.0,0.053371]
[1733234360544,0.13658983,93713.0,93702.0,0.00011983]
[1733234360743,0.13658983,93713.0,93703.0,0.01334741]
[1733234360941,0.13658983,93713.0,93704.0,0.01334741]
[1733234361241,0.3608,93723.0,93705.0,0.01334741]
[1733234361436,0.3608,93714.0,93708.0,0.05337]
[1733234361638,0.3608,93714.0,93709.0,0.01334741]
[1733234361944,0.3608,93714.0,93710.0,0.01334741]
[1733234362133,0.3608,93714.0,93708.0,0.05337]
[1733234362334,0.57192648,93714.0,93709.0,0.01334776]
[1733234362540,0.57192648,93714.0,93710.0,0.01334776]
[1733234362735,0.22112,93713.0,93704.0,0.31811448]
[1733234362938,0.22112,93713.0,93705.0,0.01334783]
[1733234363142,0.22112,93713.0,93706.0,0.01334783]
[1733234363335,0.22112,93713.0,93707.0,0.01334783]
[1733234363533,0.36208,93714.0,93711.0,0.053368]
[1733234363736,0.36208,93714.0,93706.0,0.31811448]
[1733234363737,0.3608,93714.0,93706.0,0.31811448]
[1733234363946,0.21112648,93713.0,93712.0,0.053367]
[1733234364141,0.21112648,93713.0,93712.0,0.06671473]
[1733234365348,0.22116,93715.0,93714.0,0.053367]
[1733234365549,0.36240165,93732.0,93721.0,0.053363]
[1733234365748,0.00160165,93732.0,93731.0,0.053357]
[1733234366042,0.00160165,93732.0,93731.0,0.06670176]
[1733234366248,0.00160165,93732.0,93731.0,0.08805141]
[1733234366440,0.00160165,93732.0,93731.0,0.15478093]
[1733234366637,0.0027,93747.0,93731.0,0.15478093]
[1733234366837,0.0027,93747.0,93735.0,0.053355]
[1733234367038,0.0027,93747.0,93735.0,0.08007428]
[1733234367244,0.22116,93753.0,93751.0,0.053345]
[1733234368236,0.45108075,93766.0,93751.0,0.053345]
[1733234368441,0.22116,93755.0,93752.0,0.06671208]
[1733234368641,0.22116,93755.0,93742.0,0.0027]
[1733234368841,0.22116,93755.0,93743.0,0.10140454]
[1733234369047,0.21112648,93753.0,93752.0,0.053345]
[1733234369244,0.21112648,93753.0,93752.0,0.38514951]
[1733234369442,0.21112648,93753.0,93752.0,0.55441375]
[1733234370540,0.21112648,93753.0,93752.0,0.0667144]
[1733234370851,0.21112648,93753.0,93752.0,0.053345]
[1733234371052,0.00160074,93766.0,93762.0,0.053339]
[1733234371344,0.00160074,93766.0,93765.0,0.053338]
[1733234372144,0.00160074,93766.0,93761.0,0.6794099]
[1733234372145,0.21272722,93766.0,93761.0,0.00056]
[1733234372352,0.43384722,93766.0,93755.0,0.3186099]
[1733234372545,0.3608,93756.0,93754.0,0.3186099]
[1733234372847,0.3608,93756.0,93746.0,0.053348]
[1733234373054,0.3608,93756.0,93743.0,0.0027]
[1733234373055,0.3608,93747.0,93740.0,0.38160217]
[1733234373238,0.053351,93742.0,93740.0,0.38160217]
[1733234373548,0.3608,93741.0,93740.0,0.38160217]
[1733234373859,0.053354,93737.0,93732.0,0.00283299]
[1733234374146,0.053354,93737.0,93732.0,0.00013299]
[1733234374147,0.3608,93733.0,93732.0,0.00013299]
[1733234374346,0.3608,93733.0,93732.0,0.06686772]
[1733234374651,0.053359,93727.0,93725.0,0.0027]
[1733234374847,0.473,93726.0,93717.0,0.0027]
[1733234375047,0.473,93726.0,93718.0,0.55460813]
[1733234375359,0.3608,93719.0,93712.0,0.053368]
[1733234375650,0.3608,93719.0,93713.0,0.55471399]
[1733234375847,0.3608,93714.0,93713.0,9.234e-05]
[1733234376044,0.3608,93714.0,93713.0,0.06683557]
[1733234378545,0.3608,93719.0,93718.0,0.053364]
[1733234378750,0.00160119,93733.0,93730.0,0.053358]
[1733234378953,0.00160119,93733.0,93732.0,0.053356]
[1733234379146,0.00160119,93733.0,93732.0,0.12009923]
[1733234379846,0.00160119,93733.0,93732.0,0.60791317]
[1733234382141,0.3608,93743.0,93742.0,0.053347]
[1733234382342,0.3608,93743.0,93742.0,0.12009023]
[1733234382745,0.0027,93758.0,93757.0,0.053338]
[1733234382947,0.36240074,93766.0,93762.0,0.053335]
[1733234383246,0.36240074,93766.0,93763.0,0.06674323]
[1733234383452,0.36240074,93766.0,93764.0,0.06674323]
[1733234383641,0.38375668,93766.0,93765.0,0.06674323]
[1733234383844,0.36240074,93766.0,93765.0,0.12007723]
[1733234384250,0.00160074,93766.0,93765.0,0.06674323]
[1733234384445,0.05493374,93766.0,93765.0,0.06674323]
[1733234384954,0.22272074,93766.0,93765.0,0.06674323]
[1733234385151,0.22272074,93766.0,93764.0,0.053334]
[1733234385754,0.00160074,93766.0,93765.0,0.06671142]
[1733234385958,0.36240074,93766.0,93757.0,8.888e-05]
[1733234386255,0.3608,93758.0,93757.0,8.888e-05]
[1733234386448,0.3608,93758.0,93757.0,0.05342688]
[1733234386854,0.36240074,93766.0,93759.0,0.053337]
[1733234387156,0.22112,93762.0,93759.0,0.053337]
[1733234387357,0.22112,93761.0,93759.0,0.053337]
[1733234387554,0.36240074,93766.0,93764.0,0.053334]
[1733234387753,0.00160074,93766.0,93764.0,0.053334]
[1733234388756,0.00160074,93766.0,93764.0,0.414134]
[1733234389058,0.00011166,93768.0,93767.0,0.053333]
[1733234389268,0.0027,93783.0,93782.0,0.053324]
[1733234389557,0.1097,93794.0,93778.0,0.3608]
[1733234389955,0.1097,93794.0,93779.0,0.053326]
[1733234390150,0.3608,93788.0,93774.0,0.0027]
[1733234390347,0.3608,93780.0,93769.0,0.0027]
[1733234390548,0.3608,93780.0,93770.0,0.053332]
[1733234391070,0.3608,93780.0,93773.0,0.05333]
[1733234391354,0.3608,93780.0,93770.0,0.19681621]
[1733234391355,0.22204,93779.0,93770.0,0.19681621]
[1733234391563,0.22204,93779.0,93776.0,0.053327]
[1733234391760,0.22204,93779.0,93777.0,0.053327]
[1733234392055,0.22204,93779.0,93773.0,0.3608]
[1733234392259,0.22204,93779.0,93777.0,0.053327]
[1733234392447,0.053322,93785.0,93777.0,0.053327]
[1733234392757,0.22204,93779.0,93777.0,0.053327]
[1733234393164,0.22204,93782.0,93771.0,0.3608]
[1733234393462,0.22204,93782.0,93781.0,0.053324]
[1733234393664,0.22204,93784.0,93781.0,0.053324]
[1733234394155,0.22204,93784.0,93771.0,0.3608]
[1733234394857,7.791e-05,93788.0,93780.0,0.053325]
[1733234395054,0.22204,93786.0,93780.0,0.053325]
[1733234395363,0.053323,93783.0,93774.0,0.053328]
[1733234395564,0.053323,93783.0,93771.0,0.3608]
[1733234395565,0.053323,93784.0,93771.0,0.3608]
[1733234395763,0.05333,93772.0,93770.0,0.0027]
[1733234395960,0.7216,93777.0,93759.0,0.0027]
[1733234395961,0.053336,93760.0,93759.0,0.0027]
[1733234396163,0.053337,93758.0,93748.0,0.0027]
[1733234396363,0.7216,93760.0,93748.0,0.19951621]
[1733234396755,0.053337,93759.0,93748.0,0.25285921]
[1733234396955,0.053337,93759.0,93748.0,0.19951621]
[1733234397155,0.043337,93759.0,93748.0,0.19951621]
[1733234397367,0.3608,93760.0,93748.0,0.19951621]
[1733234397552,0.3608,93760.0,93748.0,0.0027]
[1733234397753,0.477,93760.0,93752.0,0.053341]
[1733234398163,0.477,93760.0,93756.0,0.053338]
[1733234398366,0.477,93760.0,93748.0,0.0027]
[1733234398766,0.477,93760.0,93759.0,0.053337]
[1733234399464,0.3608,93760.0,93759.0,0.053337]
[1733234400064,0.3608,93760.0,93750.0,0.19681621]
[1733234400272,0.3608,93760.0,93758.0,0.053337]
[1733234400661,0.053337,93759.0,93748.0,0.0027]
[1733234401468,0.1193,93758.0,93751.0,0.053341]
[1733234401666,0.1193,93758.0,93748.0,0.0027]
[1733234402467,0.053342,93749.0,93748.0,0.0027]
[1733234402676,0.3608,93749.0,93741.0,0.0027]
[1733234402867,0.7216,93749.0,93735.0,0.05335]
[1733234403064,0.3608,93737.0,93726.0,0.36424]
[1733234403374,0.3608,93737.0,93726.0,0.36154]
[1733234403375,0.053352,93733.0,93726.0,0.36154]
[1733234403574,0.3608,93737.0,93727.0,9.691e-05]
[1733234403575,0.3608,93729.0,93727.0,9.691e-05]
[1733234403966,0.414154,93729.0,93727.0,9.691e-05]
[1733234404574,0.3608,93729.0,93727.0,9.691e-05]
[1733234404970,0.23008,93728.0,93727.0,9.691e-05]
[1733234408073,0.25144457,93728.0,93727.0,9.691e-05]
[1733234409369,0.2515414,93728.0,93727.0,9.691e-05]
[1733234409770,0.2515414,93728.0,93720.0,0.0027]
[1733234409972,0.3608,93721.0,93712.0,0.0027]
[1733234410172,0.3608,93713.0,93708.0,0.0027]
[1733234410375,0.3608,93710.0,93700.0,0.107]
[1733234410582,0.3608,93701.0,93700.0,0.30381621]
[1733234410772,0.3608,93701.0,93700.0,0.10707793]
[1733234413283,0.3608,93710.0,93700.0,0.10707793]
[1733234413471,0.3608,93710.0,93701.0,0.1217]
[1733234413671,0.3635,93720.0,93708.0,0.3608]
[1733234413868,0.0027,93727.0,93710.0,0.19681621]
[1733234414072,0.0027,93727.0,93708.0,0.3608]
[1733234414073,9.683e-05,93728.0,93719.0,0.3608]
[1733234414279,0.09126,93727.0,93720.0,0.116]
[1733234415182,0.00746,93726.0,93720.0,0.116]
[1733234415477,0.00746,93726.0,93719.0,0.3608]
[1733234415668,0.00746,93726.0,93715.0,0.3608]
[1733234415871,0.00746,93726.0,93711.0,0.1152]
[1733234415872,0.3608,93716.0,93711.0,0.1152]
[1733234416881,0.00853,93715.0,93711.0,0.1152]
[1733234417674,0.00746,93726.0,93713.0,0.3608]
[1733234417974,0.00746,93726.0,93721.0,0.3608]
[1733234418875,0.00746,93726.0,93716.0,0.19681621]
[1733234419077,0.09126,93727.0,93721.0,0.3608]
[1733234419279,0.0027,93740.0,93721.0,0.6608]
[1733234419581,0.00853,93739.0,93731.0,0.3608]
[1733234419775,0.00853,93739.0,93737.0,0.3608]
[1733234419979,0.0027,93752.0,93737.0,0.3608]
[1733234420194,0.0027,93761.0,93749.0,0.3608]
[1733234420479,0.02136762,93764.0,93738.0,8.132e-05]
[1733234420480,0.00746,93751.0,93743.0,0.0027]
[1733234420683,0.00746,93751.0,93738.0,0.00278132]
[1733234420882,0.00746,93751.0,93740.0,0.19681621]
[1733234421184,0.00746,93751.0,93747.0,0.3608]
[1733234421585,0.00853,93750.0,93740.0,0.19681621]
[1733234421779,0.3608,93746.0,93738.0,8.132e-05]
[1733234422284,0.04599,93745.0,93738.0,8.132e-05]
[1733234423590,0.3608,93749.0,93738.0,8.132e-05]
[1733234423888,0.00853,93750.0,93741.0,0.3608]
[1733234424188,0.0016005,93764.0,93742.0,0.1187]
[1733234424385,0.0016005,93764.0,93747.0,0.19681621]
[1733234424892,0.0016005,93764.0,93751.0,0.3608]
[1733234425489,0.3608,93754.0,93742.0,0.0027]
[1733234425691,0.3608,93743.0,93740.0,0.19681621]
[1733234425992,0.3608,93743.0,93738.0,8.132e-05]
[1733234425993,0.3608,93741.0,93738.0,8.132e-05]
[1733234428386,0.3608,93741.0,93740.0,4e-05]
[1733234428581,0.00746,93753.0,93752.0,0.053346]
[1733234428979,0.18567,93763.0,93752.0,0.053346]
[1733234428980,0.3608,93758.0,93753.0,0.053345]
[1733234429197,0.3608,93758.0,93756.0,0.053344]
[1733234429580,0.3608,93758.0,93757.0,0.053343]
[1733234429784,0.3608,93758.0,93757.0,0.053383]
[1733234430188,0.13233,93763.0,93757.0,0.053383]
[1733234430189,0.00853,93763.0,93762.0,0.05334]
[1733234430779,0.00853,93763.0,93757.0,4e-05]
[1733234431090,4e-05,93758.0,93757.0,4e-05]
[1733234431297,4e-05,93758.0,93730.0,0.19681621]
[1733234431589,0.00853,93763.0,93730.0,0.19681621]
[1733234431590,0.36084,93739.0,93730.0,0.25017421]
[1733234431798,0.36084,93739.0,93719.0,0.016]
[1733234431988,0.053358,93731.0,93719.0,0.016]
[1733234432187,0.3608,93720.0,93719.0,0.069365]
[1733234432394,0.36084,93720.0,93719.0,0.069365]
[1733234432591,0.36084,93720.0,93719.0,0.053365]
[1733234432984,4e-05,93720.0,93719.0,0.0695005]
[1733234433181,4e-05,93720.0,93719.0,0.0534605]
[1733234433390,0.3608,93739.0,93738.0,0.053354]
[1733234433589,0.36204001,93739.0,93738.0,0.053354]
[1733234433791,0.3608,93745.0,93744.0,0.053351]
[1733234433986,0.3608,93753.0,93743.0,0.19681621]
[1733234434188,0.3624005,93764.0,93761.0,0.053341]
[1733234434589,0.3624005,93764.0,93761.0,0.05341758]
[1733234435684,0.0016005,93764.0,93761.0,7.658e-05]
[1733234435894,0.0016005,93764.0,93743.0,0.3608]
[1733234435895,0.36072342,93759.0,93733.0,0.053357]
[1733234436094,0.7216,93741.0,93733.0,0.02136596]
[1733234436291,0.7216,93741.0,93738.0,0.3]
[1733234436490,0.7216,93741.0,93738.0,0.353354]
[1733234436790,0.7216,93741.0,93740.0,0.05504096]
[1733234436992,0.7216,93741.0,93740.0,0.00168796]
[1733234439403,0.7216,93741.0,93730.0,0.25017421]
[1733234439700,0.3608,93731.0,93730.0,0.25017421]
[1733234439893,0.3608,93731.0,93730.0,0.053358]
[1733234440401,0.3608,93731.0,93730.0,0.05347782]
[1733234441804,0.3608,93755.0,93754.0,0.053345]
[1733234441993,0.3608,93765.0,93745.0,0.19681621]
[1733234442298,0.3608,93765.0,93763.0,0.053339]
[1733234442508,0.3608,93775.0,93763.0,0.053339]
[1733234442509,0.126,93774.0,93763.0,0.053339]
[1733234442893,0.126,93774.0,93773.0,0.053334]
[1733234443400,0.3608,93775.0,93773.0,0.053334]
[1733234443594,8.853e-05,93784.0,93783.0,0.053328]
[1733234444396,0.306262,93801.0,93800.0,0.053319]
[1733234444600,0.3608,93819.0,93795.0,0.3608]
[1733234444807,0.3608,93819.0,93783.0,0.10663993]
[1733234444808,0.3608,93810.0,93790.0,0.19681621]
[1733234444995,0.3608,93808.0,93801.0,0.053317]
[1733234445195,0.3608,93808.0,93783.0,0.0213644]
[1733234445196,0.1308,93807.0,93783.0,0.0213644]
[1733234445400,0.3608,93798.0,93784.0,9.99e-05]
[1733234445710,0.1308,93807.0,93790.0,0.053322]
[1733234445711,0.053314,93805.0,93790.0,0.053322]
[1733234445893,0.1308,93807.0,93790.0,0.19681621]
[1733234446097,0.1308,93807.0,93805.0,0.053314]
[1733234446297,0.3608,93814.0,93790.0,0.55761621]
[1733234446494,0.0027,93805.0,93804.0,0.25013021]
[1733234446796,0.0027,93811.0,93810.0,0.053311]
[1733234447004,8.249e-05,93815.0,93814.0,0.053309]
[1733234447910,0.0027,93821.0,93820.0,0.053305]
[1733234448111,0.3608,93844.0,93834.0,0.19681621]
[1733234448409,0.3608,93835.0,93825.0,0.053302]
[1733234448706,0.3608,93827.0,93820.0,0.19681621]
[1733234448899,0.1309,93826.0,93821.0,7.56e-05]
[1733234449298,0.1309,93826.0,93825.0,0.053302]
[1733234449502,0.3608,93835.0,93821.0,7.56e-05]
[1733234449705,0.3608,93835.0,93834.0,0.053297]
[1733234449908,0.3608,93835.0,93821.0,7.56e-05]
[1733234450211,0.053295,93842.0,93822.0,0.053306]
[1733234450395,0.3608,93842.0,93830.0,0.19681621]
[1733234450599,0.3687,93852.0,93830.0,0.19681621]
[1733234450798,0.3687,93852.0,93835.0,0.053298]
[1733234451004,0.053291,93848.0,93835.0,0.053298]
[1733234451206,0.3608,93839.0,93830.0,0.19681621]
[1733234451712,0.3608,93839.0,93832.0,0.0533]
[1733234451910,0.3608,93839.0,93830.0,0.19681621]
[1733234452113,0.3608,93839.0,93825.0,0.414104]
[1733234452114,0.3608,93839.0,93828.0,0.053302]
[1733234452305,0.3608,93839.0,93830.0,0.053301]
[1733234452306,0.1234,93838.0,93830.0,0.053301]
[1733234452608,0.1234,93838.0,93821.0,7.56e-05]
[1733234452609,0.3608,93831.0,93821.0,7.56e-05]
[1733234452914,0.3608,93831.0,93781.0,0.00159944]
[1733234452915,0.3608,93822.0,93781.0,0.00159944]
[1733234453104,0.3608,93813.0,93790.0,0.19681621]
[1733234453416,0.053312,93812.0,93797.0,0.05332]
[1733234453612,0.3608,93813.0,93790.0,0.19681621]
[1733234453613,0.053315,93807.0,93790.0,0.19681621]
[1733234453802,0.053315,93807.0,93797.0,0.05332]
[1733234454000,0.01065,93811.0,93797.0,0.05332]
[1733234454206,0.053314,93807.0,93800.0,0.19681621]
[1733234454404,0.01065,93811.0,93791.0,0.00011063]
[1733234454405,0.053316,93805.0,93791.0,0.00011063]
[1733234454707,0.01065,93811.0,93797.0,0.3608]
[1733234454708,0.053314,93808.0,93797.0,0.3608]
[1733234454908,0.01065,93811.0,93798.0,0.3608]
[1733234455310,0.01065,93811.0,93791.0,0.00011063]
[1733234455510,0.053313,93810.0,93798.0,0.3608]
[1733234455811,0.053314,93808.0,93794.0,0.053322]
[1733234456005,0.01065,93811.0,93804.0,0.053317]
[1733234456006,0.1227,93809.0,93804.0,0.053317]
[1733234456406,0.1227,93809.0,93796.0,0.3608]
[1733234456603,0.1227,93809.0,93801.0,0.053318]
[1733234456811,0.1227,93809.0,93803.0,0.053317]
[1733234457013,0.1227,93809.0,93806.0,0.053318]
[1733234457309,0.1227,93809.0,93807.0,0.053317]
[1733234457507,0.1227,93809.0,93807.0,0.414117]
[1733234458217,0.01065,93811.0,93810.0,0.053315]
[1733234459608,0.01065,93811.0,93810.0,0.414115]
[1733234459810,0.1227,93836.0,93810.0,0.41421904]
[1733234460013,0.1227,93836.0,93822.0,0.3608]
[1733234460213,0.1227,93836.0,93833.0,0.053302]
[1733234460411,0.1227,93836.0,93834.0,0.053302]
[1733234460610,0.1227,93836.0,93822.0,0.3608]
[1733234460910,0.1227,93836.0,93834.0,0.053302]
[1733234461407,0.1213,93848.0,93840.0,0.053297]
[1733234461609,0.1213,93848.0,93839.0,0.053298]
[1733234461805,0.1213,93848.0,93840.0,0.053297]
[1733234462208,0.00852,93847.0,93840.0,0.053297]
[1733234462699,0.00852,93847.0,93844.0,0.053295]
[1733234463101,0.00852,93847.0,93839.0,0.3608]
[1733234463304,0.00852,93847.0,93840.0,0.053299]
[1733234463501,0.00852,93847.0,93831.0,0.3608]
[1733234463715,0.053302,93835.0,93830.0,0.0027]
[1733234463903,0.3608,93842.0,93820.0,0.19681621]
[1733234464104,0.053301,93837.0,93823.0,0.3608]
[1733234464314,0.00852,93847.0,93823.0,0.3608]
[1733234464514,0.053303,93832.0,93831.0,0.3608]
[1733234464721,0.053296,93845.0,93831.0,0.1565]
[1733234464924,0.23748,93846.0,93831.0,0.1565]
[1733234464925,0.3608,93842.0,93831.0,0.1565]
[1733234465610,0.00852,93841.0,93831.0,0.1565]
[1733234465912,0.00852,93841.0,93839.0,0.414099]
[1733234466514,0.00852,93841.0,93840.0,0.3608]
[1733234466823,0.00852,93841.0,93840.0,0.36093712]
[1733234467010,0.00745,93844.0,93840.0,0.36093712]
[1733234467212,0.00745,93844.0,93843.0,0.053297]
[1733234467519,0.00852,93847.0,93844.0,0.053295]
[1733234467705,0.00852,93847.0,93845.0,0.053295]
[1733234468308,0.00852,93847.0,93842.0,0.3608]
[1733234468519,0.00852,93847.0,93842.0,0.414096]
[1733234468719,0.00852,93847.0,93842.0,0.3608]
[1733234468913,0.053297,93841.0,93840.0,0.36093712]
[1733234469214,0.053297,93841.0,93840.0,0.00013712]
[1733234469421,0.127887,93841.0,93840.0,0.00013712]
[1733234469916,0.07459,93841.0,93840.0,0.00013712]
[1733234470510,0.07209,93841.0,93840.0,0.00013712]
[1733234471319,0.07209,93841.0,93840.0,0.36093712]
[1733234471518,0.00852,93847.0,93846.0,0.053294]
[1733234472222,0.00852,93848.0,93846.0,0.053294]
[1733234472521,0.00010179,93849.0,93848.0,0.053293]
[1733234473418,0.00538,93858.0,93847.0,0.25401049]
[1733234473629,0.00538,93858.0,93842.0,0.3608]
[1733234473630,0.00538,93858.0,93857.0,0.414089]
[1733234474219,0.0027,93874.0,93873.0,0.05328]
[1733234474416,0.00128,93879.0,93877.0,0.053277]
[1733234474614,0.3608,93888.0,93873.0,8.335e-05]
[1733234474824,0.053279,93875.0,93873.0,8.335e-05]
[1733234475025,0.053286,93862.0,93861.0,0.0027]
[1733234475318,0.053286,93862.0,93849.0,0.053294]
[1733234475319,0.2374,93862.0,93849.0,0.053294]
[1733234475519,0.3608,93858.0,93850.0,0.053294]
[1733234475713,0.3608,93858.0,93848.0,0.00159841]
[1733234475914,0.053294,93849.0,93848.0,0.00159841]
[1733234476114,0.053294,93849.0,93848.0,0.00170892]
[1733234476315,0.3608,93850.0,93848.0,0.00170892]
[1733234477424,0.414094,93850.0,93848.0,0.00170892]
[1733234478017,0.414094,93850.0,93848.0,0.00011051]
[1733234479125,0.3608,93850.0,93848.0,0.00011051]
[1733234479332,0.3608,93849.0,93848.0,0.00011051]
[1733234479821,0.3608,93849.0,93848.0,0.05340551]
[1733234480023,0.3608,93851.0,93848.0,0.05340551]
[1733234480223,0.3608,93851.0,93848.0,0.00011051]
[1733234480723,0.061814,93850.0,93848.0,0.00011051]
[1733234482927,0.01065,93849.0,93848.0,0.00011051]
[1733234483127,0.24101,93849.0,93848.0,0.00011051]
[1733234484222,0.01065,93849.0,93848.0,0.00011051]
[1733234484523,0.24101,93849.0,93835.0,0.0027]
[1733234484832,0.053305,93830.0,93829.0,0.0027]
[1733234485021,0.053305,93830.0,93829.0,0.06668419]
[1733234485328,0.053312,93818.0,93816.0,0.0027]
[1733234485631,0.59116,93817.0,93811.0,0.00159903]
[1733234485829,0.3608,93815.0,93812.0,0.00010792]
[1733234486135,0.3608,93815.0,93813.0,0.053316]
[1733234486529,0.3608,93815.0,93812.0,0.00010792]
[1733234486732,0.053316,93814.0,93812.0,0.00010792]
[1733234487034,0.3608,93815.0,93812.0,0.00010792]
[1733234487239,0.3608,93815.0,93812.0,0.05342392]
[1733234487431,0.3608,93815.0,93813.0,0.053315]
[1733234488128,0.3608,93830.0,93829.0,0.053307]
[1733234488336,0.00140001,93835.0,93833.0,0.053304]
[1733234488535,0.00013731,93840.0,93838.0,0.053301]
[1733234490031,0.01065,93849.0,93838.0,0.053301]
[1733234490246,0.01065,93849.0,93848.0,0.053293]
[1733234490830,0.01065,93849.0,93848.0,0.11996317]
[1733234491035,0.063942,93849.0,93848.0,0.06667017]
[1733234491223,0.00852,93850.0,93848.0,0.00013519]
[1733234491530,0.00852,93850.0,93849.0,0.053292]
[1733234491728,0.00852,93850.0,93849.0,0.11995715]
[1733234491933,0.00852,93850.0,93849.0,0.053292]
[1733234492135,0.00852,93850.0,93849.0,0.11995522]
[1733234492930,0.00852,93850.0,93849.0,0.48075522]
[1733234493528,0.00852,93850.0,93849.0,0.11995522]
[1733234494027,0.422613,93850.0,93849.0,0.06666322]
[1733234494234,0.36932,93850.0,93848.0,0.05342919]
[1733234494529,0.423385,93850.0,93849.0,0.06666442]
[1733234494729,0.36157,93850.0,93849.0,0.053295]
[1733234495134,0.00077,93850.0,93848.0,0.05343019]
[1733234495734,0.3608,93856.0,93848.0,0.05343019]
[1733234496033,0.44924001,93881.0,93848.0,0.05343019]
[1733234496034,0.3608,93879.0,93863.0,0.053287]
[1733234496237,0.0027,93881.0,93876.0,0.053279]
[1733234496432,0.23036,93884.0,93876.0,0.053279]
[1733234496631,0.053276,93882.0,93876.0,0.053279]
[1733234496837,0.23036,93887.0,93876.0,0.053279]
[1733234497040,0.3608,93888.0,93876.0,0.053279]
[1733234497539,0.0027,93893.0,93876.0,0.05339521]
[1733234497742,0.0027,93893.0,93876.0,0.41419521]
[1733234497934,0.0027,93893.0,93876.0,0.05339521]
[1733234498328,0.053272,93889.0,93876.0,0.05339521]
[1733234498537,0.3608,93882.0,93876.0,0.05339521]
[1733234498732,0.05389723,93877.0,93876.0,0.00011621]
[1733234499349,0.00061823,93877.0,93876.0,0.00011621]
[1733234499932,0.72221823,93877.0,93876.0,0.00011621]
[1733234500139,0.36141823,93877.0,93863.0,0.0027]
[1733234500330,0.59861823,93877.0,93863.0,0.053286]
[1733234500534,0.05328,93873.0,93864.0,0.053285]
[1733234500730,0.3608,93865.0,93864.0,0.053285]
[1733234500940,0.36141823,93877.0,93864.0,0.053286]
[1733234501245,0.00061823,93877.0,93875.0,0.053279]
[1733234501442,0.00061823,93877.0,93872.0,0.053281]
[1733234501741,0.00061823,93877.0,93865.0,0.36089567]
[1733234501940,0.00061823,93877.0,93870.0,0.053282]
[1733234502137,0.00061823,93877.0,93865.0,0.36089567]
[1733234502335,0.00061823,93877.0,93875.0,0.05328]
[1733234503242,0.00061823,93877.0,93876.0,0.3608]
[1733234505241,0.1,93900.0,93892.0,0.053271]
[1733234505453,0.00159793,93912.0,93911.0,0.05326]
[1733234505641,0.3608,93929.0,93927.0,0.05325]
[1733234505837,0.3608,93929.0,93902.0,0.19681621]
[1733234505838,0.053254,93920.0,93909.0,0.05326]
[1733234506039,0.053254,93920.0,93878.0,0.053278]
[1733234506040,0.053265,93902.0,93886.0,0.02133904]
[1733234506242,0.1319,93901.0,93887.0,0.3608]
[1733234506543,0.1319,93901.0,93891.0,8.139e-05]
[1733234506746,0.1319,93901.0,93895.0,0.3608]
[1733234506945,0.3608,93904.0,93895.0,0.3608]
[1733234507133,0.01,93958.0,93895.0,0.3608]
[1733234507134,0.414055,93915.0,93895.0,0.3608]
[1733234507341,0.053255,93914.0,93903.0,0.3608]
[1733234507540,0.1382,93918.0,93903.0,0.3608]
[1733234507848,0.36088128,93934.0,93913.0,0.3608]
[1733234508049,0.053245,93932.0,93913.0,0.3608]
[1733234508247,8.128e-05,93934.0,93925.0,0.053248]
[1733234508456,8.128e-05,93934.0,93922.0,0.3608]
[1733234508747,8.128e-05,93934.0,93932.0,0.053244]
[1733234509650,0.00159769,93949.0,93945.0,0.053237]
[1733234509846,0.00159769,93949.0,93939.0,0.19681621]
[1733234509847,0.00159769,93949.0,93948.0,0.3608]
[1733234510043,0.00159769,93949.0,93944.0,0.3608]
[1733234510239,0.00159769,93949.0,93948.0,0.3608]
[1733234510441,0.00159769,93949.0,93948.0,0.3609051]
[1733234511052,0.1268,93969.0,93954.0,0.053235]
[1733234511349,0.1268,93969.0,93968.0,0.35229]
[1733234511549,0.1268,93969.0,93958.0,0.3608]
[1733234511743,0.180026,93969.0,93958.0,0.3608]
[1733234511943,0.053227,93968.0,93957.0,0.3608]
[1733234512147,0.1268,93969.0,93960.0,0.05323]
[1733234512343,0.1268,93969.0,93965.0,0.3608]
[1733234513851,0.053227,93967.0,93965.0,0.3608]
[1733234514039,0.1268,93969.0,93965.0,0.3608]
[1733234514447,0.12779192,93979.0,93968.0,0.053226]
[1733234514647,9.192e-05,93979.0,93978.0,0.3608]
[1733234514851,9.192e-05,93979.0,93960.0,0.19681621]
[1733234514852,0.053224,93973.0,93971.0,0.3608]
[1733234515046,0.053223,93974.0,93971.0,0.3608]
[1733234515248,0.053224,93972.0,93971.0,0.3608]
[1733234515843,9.192e-05,93979.0,93960.0,0.19737621]
[1733234516053,0.3608,93964.0,93948.0,0.0001051]
[1733234516257,0.053237,93949.0,93948.0,1e-07]
[1733234517456,0.353237,93949.0,93948.0,1e-07]
[1733234517753,0.053237,93949.0,93948.0,1e-07]